[Event "Torneo Nuevo Centro. Jornada 11"]
[Site "Chess.com"]
[Date "2020.08.28"]
[Round "1"]
[White "Aymerich Rosell, Pablo"]
[Black "Gukasov, Artem"]
[Result "1-0"]
[WhiteElo "2005"]
[BlackElo "1462"]
[TimeControl "180+2"]
[EndTime "10:37:32 PDT"]
[Termination "Victoria de jasikevic por abandono"]

1. e4 {[%clk 0:02:58.6]} 1... e6 {[%clk 0:03:00.2]} 2. d4 {[%clk 0:02:56.3]}
2... d5 {[%clk 0:02:58.2]} 3. Nd2 {[%clk 0:02:56.2]} 3... c5 {[%clk 0:02:57.1]}
4. exd5 {[%clk 0:02:55.4]} 4... exd5 {[%clk 0:02:53.9]} 5. Ngf3 {[%clk
0:02:54.1]} 5... Nf6 {[%clk 0:02:54.1]} 6. Bb5+ {[%clk 0:02:53.8]} 6... Nc6
{[%clk 0:02:52.1]} 7. O-O {[%clk 0:02:54.4]} 7... a6 {[%clk 0:02:46.7]} 8. Re1+
{[%clk 0:02:51.7]} 8... Be7 {[%clk 0:02:40.1]} 9. Bxc6+ {[%clk 0:02:48]} 9...
bxc6 {[%clk 0:02:40.4]} 10. dxc5 {[%clk 0:02:48.7]} 10... O-O {[%clk 0:02:40.3]}
11. Nb3 {[%clk 0:02:49.1]} 11... a5 {[%clk 0:02:40.6]} 12. a4 {[%clk 0:02:49]}
12... Re8 {[%clk 0:02:30.6]} 13. Ne5 {[%clk 0:02:47.5]} 13... Qc7 {[%clk
0:02:31.4]} 14. Bf4 {[%clk 0:02:47.2]} 14... Qb7 {[%clk 0:02:15.4]} 15. Qd2
{[%clk 0:02:35.9]} 15... Be6 {[%clk 0:02:10.7]} 16. Nxa5 {[%clk 0:02:32.5]}
16... Qa6 {[%clk 0:02:08.7]} 17. Naxc6 {[%clk 0:02:30.9]} 17... Rac8 {[%clk
0:02:08.2]} 18. Nxe7+ {[%clk 0:02:29]} 18... Rxe7 {[%clk 0:02:06.5]} 19. b4
{[%clk 0:02:25.7]} 19... Ne4 {[%clk 0:02:02.7]} 20. Qd3 {[%clk 0:02:16.6]} 20...
Qb7 {[%clk 0:01:54.5]} 21. c3 {[%clk 0:02:11.5]} 21... f6 {[%clk 0:01:53.5]} 22.
Nf3 {[%clk 0:02:01.1]} 22... g5 {[%clk 0:01:53.6]} 23. Bg3 {[%clk 0:01:59.6]}
23... Bf5 {[%clk 0:01:50.5]} 24. Qb5 {[%clk 0:01:55.6]} 24... Qxb5 {[%clk
0:01:48.6]} 25. axb5 {[%clk 0:01:56.2]} 25... Rb7 {[%clk 0:01:48.2]} 26. b6
{[%clk 0:01:55.2]} 26... Nxc3 {[%clk 0:01:41.3]} 27. Nd4 {[%clk 0:01:50.6]}
27... Bg6 {[%clk 0:01:27.7]} 28. Bc7 {[%clk 0:01:49.6]} 28... Nb5 {[%clk
0:01:13.4]} 29. c6 {[%clk 0:01:39.5]} 29... Rbxc7 {[%clk 0:00:52.4]} 30. Nxb5
{[%clk 0:01:12]} 30... Rf7 {[%clk 0:00:50.8]} 31. b7 {[%clk 0:01:07.3]} 31...
Rb8 {[%clk 0:00:50.7]} 32. Ra8 {[%clk 0:01:04.2]} 32... Rff8 {[%clk 0:00:51.3]}
33. Rxb8 {[%clk 0:00:55.3]} 33... Rxb8 {[%clk 0:00:51]} 34. c7 {[%clk
0:00:55.1]} 34... Rxb7 {[%clk 0:00:51.4]} 35. c8=Q+ {[%clk 0:00:55.8]} 1

[Event "Torneo Nuevo Centro. Jornada 11"]
[Site "Chess.com"]
[Date "2020.08.28"]
[Round "1"]
[White "Fente Fernandez, Jose Ignacio"]
[Black "Vidarte Morales, Arturo"]
[Result "1/2-1/2"]
[WhiteElo "1553"]
[BlackElo "2220"]
[TimeControl "180+2"]
[EndTime "10:37:45 PDT"]
[Termination "Partida en tablas por material insuficiente"]

1. e4 {[%clk 0:03:00.2]} 1... c5 {[%clk 0:03:00.2]} 2. Nf3 {[%clk 0:02:58.7]}
2... e6 {[%clk 0:03:00.5]} 3. d4 {[%clk 0:02:59.2]} 3... cxd4 {[%clk 0:03:01]}
4. Nxd4 {[%clk 0:03:01.1]} 4... a6 {[%clk 0:03:01.4]} 5. Nc3 {[%clk 0:03:00.9]}
5... Qc7 {[%clk 0:03:01.6]} 6. g3 {[%clk 0:02:54.4]} 6... Nf6 {[%clk 0:03:00]}
7. Bg2 {[%clk 0:02:51.3]} 7... Nc6 {[%clk 0:02:59.5]} 8. Nxc6 {[%clk 0:02:48.3]}
8... bxc6 {[%clk 0:02:56.6]} 9. O-O {[%clk 0:02:47.4]} 9... Bc5 {[%clk
0:02:53.3]} 10. Bg5 {[%clk 0:01:47.5]} 10... d6 {[%clk 0:02:51.3]} 11. Bxf6
{[%clk 0:01:39.2]} 11... gxf6 {[%clk 0:02:50.7]} 12. Qf3 {[%clk 0:01:18.9]}
12... Ke7 {[%clk 0:02:48.2]} 13. a3 {[%clk 0:01:02.7]} 13... Rb8 {[%clk
0:02:46.7]} 14. b4 {[%clk 0:01:02.2]} 14... Bd4 {[%clk 0:02:46.7]} 15. Rad1
{[%clk 0:00:57.3]} 15... c5 {[%clk 0:02:44]} 16. bxc5 {[%clk 0:00:49.1]} 16...
Qxc5 {[%clk 0:02:35.7]} 17. Na4 {[%clk 0:00:21.8]} 17... Qa7 {[%clk 0:02:28.7]}
18. Qd3 {[%clk 0:00:18]} 18... Bc5 {[%clk 0:02:22.5]} 19. Nxc5 {[%clk
0:00:16.4]} 19... Qxc5 {[%clk 0:02:22.5]} 20. Rb1 {[%clk 0:00:14.4]} 20... Bd7
{[%clk 0:02:18.3]} 21. Rxb8 {[%clk 0:00:12.9]} 21... Rxb8 {[%clk 0:02:17.3]} 22.
Qxa6 {[%clk 0:00:14.2]} 22... Bb5 {[%clk 0:02:12]} 23. Qa5 {[%clk 0:00:07.6]}
23... Bxf1 {[%clk 0:02:11.5]} 24. Qxc5 {[%clk 0:00:08.3]} 24... dxc5 {[%clk
0:02:11.5]} 25. Bxf1 {[%clk 0:00:10.2]} 25... Ra8 {[%clk 0:02:09.8]} 26. Bc4
{[%clk 0:00:10.3]} 26... Rxa3 {[%clk 0:02:09.5]} 27. f4 {[%clk 0:00:10.5]} 27...
Rc3 {[%clk 0:02:08.8]} 28. Bb3 {[%clk 0:00:09.8]} 28... c4 {[%clk 0:02:09]} 29.
Ba4 {[%clk 0:00:10.7]} 29... Rxc2 {[%clk 0:02:09.8]} 30. Bxc2 {[%clk 0:00:11.5]}
30... Kd6 {[%clk 0:02:07.4]} 31. Kf2 {[%clk 0:00:13]} 31... Kc5 {[%clk
0:02:08.3]} 32. Ke3 {[%clk 0:00:14.9]} 32... e5 {[%clk 0:02:08.1]} 33. Kd2
{[%clk 0:00:15.6]} 33... Kd4 {[%clk 0:02:07.9]} 34. fxe5 {[%clk 0:00:15.7]}
34... fxe5 {[%clk 0:02:07.3]} 35. g4 {[%clk 0:00:16.2]} 35... h6 {[%clk
0:02:07.8]} 36. h4 {[%clk 0:00:16.6]} 36... f6 {[%clk 0:02:07.7]} 37. Bb1 {[%clk
0:00:14.8]} 37... c3+ {[%clk 0:02:05.9]} 38. Ke2 {[%clk 0:00:15.4]} 38... Kc4
{[%clk 0:02:06]} 39. Bc2 {[%clk 0:00:15.7]} 39... Kd4 {[%clk 0:02:05.6]} 40. Kf3
{[%clk 0:00:16.2]} 40... Kc5 {[%clk 0:01:58.7]} 41. g5 {[%clk 0:00:17.1]} 41...
fxg5 {[%clk 0:01:57.8]} 42. hxg5 {[%clk 0:00:19]} 42... hxg5 {[%clk 0:01:58.5]}
43. Kg4 {[%clk 0:00:20.6]} 43... Kd4 {[%clk 0:01:59.5]} 44. Kxg5 {[%clk
0:00:22.5]} 44... Ke3 {[%clk 0:02:00.4]} 45. Kf5 {[%clk 0:00:22.7]} 45... Kd2
{[%clk 0:02:00.1]} 46. Ba4 {[%clk 0:00:23.2]} 46... c2 {[%clk 0:01:58.7]} 47.
Bxc2 {[%clk 0:00:23.7]} 47... Kxc2 {[%clk 0:01:59.9]} 48. Kxe5 {[%clk
0:00:25.4]} 48... Kd3 {[%clk 0:01:59]} 49. Kd6 {[%clk 0:00:27.3]} 49... Kxe4
{[%clk 0:01:59.7]} 1/2-1

[Event "Torneo Nuevo Centro. Jornada 11"]
[Site "Chess.com"]
[Date "2020.08.28"]
[Round "1"]
[White "Muñoz Pantoja, Miguel"]
[Black "Cayon Pelaez, Pablo"]
[Result "1-0"]
[WhiteElo "1083"]
[BlackElo "1753"]
[TimeControl "180+2"]
[EndTime "10:37:48 PDT"]
[Termination "Victoria de Indalsa por abandono"]

1. e4 {[%clk 0:03:00.6]} 1... e5 {[%clk 0:03:00.7]} 2. d4 {[%clk 0:03:01]} 2...
exd4 {[%clk 0:03:01.2]} 3. Qxd4 {[%clk 0:03:02.5]} 3... Nc6 {[%clk 0:03:02.5]}
4. Qe3 {[%clk 0:03:03.4]} 4... d6 {[%clk 0:03:01.4]} 5. Nc3 {[%clk 0:03:03.7]}
5... Nf6 {[%clk 0:03:01.2]} 6. b3 {[%clk 0:03:04.1]} 6... Be7 {[%clk 0:02:58.2]}
7. Bb2 {[%clk 0:03:04.8]} 7... O-O {[%clk 0:02:53.4]} 8. O-O-O {[%clk
0:03:05.6]} 8... b6 {[%clk 0:02:37.4]} 9. f4 {[%clk 0:03:04.5]} 9... Bb7 {[%clk
0:02:35]} 10. Kb1 {[%clk 0:03:02.7]} 10... a5 {[%clk 0:02:26.6]} 11. g4 {[%clk
0:03:03.3]} 11... Nxg4 {[%clk 0:02:26]} 12. Qg3 {[%clk 0:03:04.2]} 12... Qd7
{[%clk 0:02:23.5]} 13. Nd5 {[%clk 0:03:00.6]} 13... f5 {[%clk 0:01:56.9]} 14.
Bb5 {[%clk 0:02:28.4]} 14... Nf6 {[%clk 0:01:22.6]} 15. Nf3 {[%clk 0:02:14.3]}
15... fxe4 {[%clk 0:01:20.1]} 16. Rhg1 {[%clk 0:02:14.8]} 16... Bd8 {[%clk
0:01:12.2]} 17. Nd4 {[%clk 0:02:12]} 17... Nxd5 {[%clk 0:00:50.9]} 18. Nxc6
{[%clk 0:02:11.6]} 18... Nf6 {[%clk 0:00:52.1]} 19. Nd4 {[%clk 0:02:02.8]} 19...
c6 {[%clk 0:00:44.9]} 20. Bf1 {[%clk 0:02:00.8]} 20... c5 {[%clk 0:00:42.5]} 21.
Bh3 {[%clk 0:02:00.2]} 21... Nh5 {[%clk 0:00:30.3]} 22. Bxd7 {[%clk 0:01:53.1]}
22... Nxg3 {[%clk 0:00:30.9]} 23. Ne6 {[%clk 0:01:50.1]} 23... Rf7 {[%clk
0:00:25.9]} 24. Nxd8 {[%clk 0:01:51]} 24... Rxd7 {[%clk 0:00:26.1]} 25. Nxb7
{[%clk 0:01:50.8]} 25... Rxb7 {[%clk 0:00:28]} 26. Rxg3 {[%clk 0:01:51.3]} 26...
Rf8 {[%clk 0:00:27.8]} 27. Rxd6 {[%clk 0:01:51.2]} 27... Rxf4 {[%clk 0:00:24.5]}
28. Rd8+ {[%clk 0:01:52]} 28... Rf8 {[%clk 0:00:25.8]} 29. Rxf8+ {[%clk
0:01:52.9]} 29... Kxf8 {[%clk 0:00:27.7]} 30. Be5 {[%clk 0:01:53.4]} 30... g6
{[%clk 0:00:28]} 31. Rg4 {[%clk 0:01:54]} 31... Kf7 {[%clk 0:00:28.3]} 32. Rxe4
{[%clk 0:01:54.9]} 32... Re7 {[%clk 0:00:29.1]} 33. Rf4+ {[%clk 0:01:55.9]}
33... Ke6 {[%clk 0:00:28.8]} 34. Bc3 {[%clk 0:01:54.2]} 34... Kd5 {[%clk
0:00:29]} 35. a4 {[%clk 0:01:50.4]} 35... Re3 {[%clk 0:00:28.7]} 36. Kb2 {[%clk
0:01:49.6]} 36... g5 {[%clk 0:00:21.4]} 37. Rf5+ {[%clk 0:01:48.7]} 37... Ke4
{[%clk 0:00:19.5]} 38. Rxg5 {[%clk 0:01:48.8]} 38... Rh3 {[%clk 0:00:19.8]} 39.
Re5+ {[%clk 0:01:47.3]} 39... Kf4 {[%clk 0:00:18.1]} 40. Re7 {[%clk 0:01:47]}
40... Kf5 {[%clk 0:00:16.2]} 41. Rf7+ {[%clk 0:01:46.3]} 41... Ke6 {[%clk
0:00:16.6]} 42. Rf6+ {[%clk 0:01:47.4]} 42... Kd7 {[%clk 0:00:18.1]} 43. Rxb6
{[%clk 0:01:48.9]} 43... Rxh2 {[%clk 0:00:19.6]} 44. Bxa5 {[%clk 0:01:49.8]} 1

[Event "Torneo Nuevo Centro. Jornada 11"]
[Site "Chess.com"]
[Date "2020.08.28"]
[Round "1"]
[White "Bercaru, Vlad Ionut"]
[Black "Sos Andreu, Eric"]
[Result "0-1"]
[WhiteElo "1725"]
[BlackElo "2519"]
[TimeControl "180+2"]
[EndTime "10:37:51 PDT"]
[Termination "Victoria de ericovski por abandono"]

1. c4 {[%clk 0:03:00]} 1... Nf6 {[%clk 0:02:59.1]} 2. Nc3 {[%clk 0:02:59.1]}
2... g6 {[%clk 0:03:00.3]} 3. g3 {[%clk 0:02:58]} 3... Bg7 {[%clk 0:03:01.4]} 4.
Bg2 {[%clk 0:02:59.2]} 4... O-O {[%clk 0:03:03]} 5. Nf3 {[%clk 0:03:00.7]} 5...
d6 {[%clk 0:03:03.8]} 6. O-O {[%clk 0:03:02.1]} 6... e5 {[%clk 0:03:04.9]} 7. d3
{[%clk 0:02:59.7]} 7... Nc6 {[%clk 0:03:05.7]} 8. Bg5 {[%clk 0:02:59.2]} 8... h6
{[%clk 0:03:06.2]} 9. Bxf6 {[%clk 0:02:59.2]} 9... Bxf6 {[%clk 0:03:08.1]} 10.
Nd5 {[%clk 0:03:00]} 10... Bg7 {[%clk 0:03:08.7]} 11. Rb1 {[%clk 0:03:00.2]}
11... Nd4 {[%clk 0:02:54.2]} 12. Nxd4 {[%clk 0:02:54.4]} 12... exd4 {[%clk
0:02:56.1]} 13. e4 {[%clk 0:02:28.9]} 13... dxe3 {[%clk 0:02:53.5]} 14. Nxe3
{[%clk 0:02:10.6]} 14... a5 {[%clk 0:02:44.6]} 15. b3 {[%clk 0:02:05]} 15... c6
{[%clk 0:02:33.7]} 16. d4 {[%clk 0:01:48.4]} 16... Qf6 {[%clk 0:02:28.7]} 17. d5
{[%clk 0:01:46.9]} 17... c5 {[%clk 0:02:25.4]} 18. Qd2 {[%clk 0:01:38.2]} 18...
Qd4 {[%clk 0:02:20.5]} 19. Rbd1 {[%clk 0:01:30.3]} 19... Qxd2 {[%clk 0:02:20.4]}
20. Rxd2 {[%clk 0:01:30.1]} 20... Bd7 {[%clk 0:02:21.2]} 21. Re1 {[%clk
0:01:16.3]} 21... Bc3 {[%clk 0:02:20.4]} 22. Rde2 {[%clk 0:01:13.1]} 22... Bxe1
{[%clk 0:02:21]} 23. Rxe1 {[%clk 0:01:15]} 23... Rfe8 {[%clk 0:02:21.4]} 24. Kf1
{[%clk 0:01:14.7]} 24... f5 {[%clk 0:02:14.4]} 25. Bh3 {[%clk 0:01:11.1]} 25...
Kg7 {[%clk 0:02:10.5]} 26. f4 {[%clk 0:01:03.1]} 26... Kf6 {[%clk 0:02:06.5]}
27. Re2 {[%clk 0:00:55.6]} 27... Re7 {[%clk 0:02:06.3]} 28. Kf2 {[%clk
0:00:51.9]} 28... Rae8 {[%clk 0:02:06.9]} 29. g4 {[%clk 0:00:40.9]} 29... fxg4
{[%clk 0:02:03.5]} 30. Nxg4+ {[%clk 0:00:42.8]} 30... Bxg4 {[%clk 0:02:04]} 31.
Rxe7 {[%clk 0:00:39.3]} 31... Rxe7 {[%clk 0:02:02.9]} 32. Bxg4 {[%clk
0:00:41.2]} 32... Re4 {[%clk 0:01:52.6]} 33. Kf3 {[%clk 0:00:21.1]} 33... Re1
{[%clk 0:01:53.4]} 34. Bc8 {[%clk 0:00:20.7]} 34... b6 {[%clk 0:01:53.6]} 35.
Ba6 {[%clk 0:00:20.3]} 35... Ra1 {[%clk 0:01:53.6]} 36. Bb5 {[%clk 0:00:20.3]}
36... Rxa2 {[%clk 0:01:54.5]} 37. Bd7 {[%clk 0:00:19.3]} 37... Rxh2 {[%clk
0:01:54.3]} 38. Kg3 {[%clk 0:00:18.9]} 38... Rb2 {[%clk 0:01:53.8]} 39. Ba4
{[%clk 0:00:18.6]} 39... g5 {[%clk 0:01:54.3]} 40. fxg5+ {[%clk 0:00:18.3]}
40... Kxg5 {[%clk 0:01:56.2]} 41. Kh3 {[%clk 0:00:17.7]} 41... Rd2 {[%clk
0:01:53.4]} 42. Bd7 {[%clk 0:00:16.7]} 42... Rd3+ {[%clk 0:01:54.3]} 43. Kg2
{[%clk 0:00:16.6]} 43... Rxb3 {[%clk 0:01:56.2]} 44. Ba4 {[%clk 0:00:17.1]}
44... Rb4 {[%clk 0:01:57.2]} 45. Bb5 {[%clk 0:00:18.2]} 45... Rxb5 {[%clk
0:01:58.3]} 46. cxb5 {[%clk 0:00:18.2]} 46... a4 {[%clk 0:01:59.9]} 47. Kf2
{[%clk 0:00:19.6]} 47... a3 {[%clk 0:02:01.4]} 48. Ke2 {[%clk 0:00:21.4]} 48...
a2 {[%clk 0:02:03]} 0

[Event "Torneo Nuevo Centro. Jornada 11"]
[Site "Chess.com"]
[Date "2020.08.28"]
[Round "1"]
[White "Más Ripoll, Vicente"]
[Black "Martin Ayala, David"]
[Result "0-1"]
[WhiteElo "1069"]
[BlackElo "1826"]
[TimeControl "180+2"]
[EndTime "10:38:10 PDT"]
[Termination "Victoria de martinayala por abandono"]

1. e4 {[%clk 0:03:00.8]} 1... d5 {[%clk 0:03:00.6]} 2. exd5 {[%clk 0:03:00.9]}
2... Nf6 {[%clk 0:03:01.3]} 3. c4 {[%clk 0:02:53.3]} 3... c6 {[%clk 0:03:01.6]}
4. dxc6 {[%clk 0:02:51.4]} 4... Nxc6 {[%clk 0:03:03.5]} 5. Nc3 {[%clk 0:02:51]}
5... e5 {[%clk 0:03:03.9]} 6. d3 {[%clk 0:02:51.4]} 6... e4 {[%clk 0:03:04.6]}
7. dxe4 {[%clk 0:02:46.3]} 7... Qxd1+ {[%clk 0:03:01.8]} 8. Kxd1 {[%clk
0:02:47.3]} 8... Be6 {[%clk 0:02:54.5]} 9. Nf3 {[%clk 0:02:23.5]} 9... O-O-O+
{[%clk 0:02:54.4]} 10. Kc2 {[%clk 0:02:15.3]} 10... Ng4 {[%clk 0:02:46.7]} 11.
Be3 {[%clk 0:02:05.9]} 11... Nxe3+ {[%clk 0:02:40.2]} 12. fxe3 {[%clk
0:02:05.7]} 12... Bc5 {[%clk 0:02:40.6]} 13. Re1 {[%clk 0:01:55.9]} 13... Rhe8
{[%clk 0:02:28.5]} 14. Ng5 {[%clk 0:01:54.2]} 14... h6 {[%clk 0:02:18]} 15. Nxe6
{[%clk 0:01:53.2]} 15... Rxe6 {[%clk 0:02:18.7]} 16. Nd5 {[%clk 0:01:50.5]}
16... Rxe4 {[%clk 0:02:07.1]} 17. b4 {[%clk 0:01:38.8]} 17... Bxb4 {[%clk
0:01:57.8]} 18. Nxb4 {[%clk 0:01:37.8]} 18... Nxb4+ {[%clk 0:01:58.4]} 19. Kb3
{[%clk 0:01:37.2]} 19... Nd3 {[%clk 0:01:55.9]} 20. Bxd3 {[%clk 0:01:36.1]}
20... Rxd3+ {[%clk 0:01:56.1]} 21. Kb4 {[%clk 0:01:32]} 21... Rdxe3 {[%clk
0:01:53.3]} 22. Rd1 {[%clk 0:01:21.5]} 22... Re2 {[%clk 0:01:52]} 23. Rhf1
{[%clk 0:01:19.7]} 23... f6 {[%clk 0:01:50.1]} 24. a4 {[%clk 0:01:14.4]} 24...
Rxg2 {[%clk 0:01:48.9]} 25. Rf5 {[%clk 0:01:09.6]} 25... Re5 {[%clk 0:01:41.8]}
26. Rf4 {[%clk 0:01:02.5]} 26... Rxh2 {[%clk 0:01:38.7]} 27. Rfd4 {[%clk
0:01:02.5]} 27... Re7 {[%clk 0:01:39]} 28. Rd8+ {[%clk 0:01:01.3]} 28... Kc7
{[%clk 0:01:39.7]} 29. R1d6 {[%clk 0:00:52.9]} 29... Rb2+ {[%clk 0:01:34.9]} 30.
Kc3 {[%clk 0:00:45.7]} 30... Rb6 {[%clk 0:01:34.2]} 31. Rd2 {[%clk 0:00:38.4]}
31... Rbe6 {[%clk 0:01:29.7]} 32. Kb4 {[%clk 0:00:34.8]} 32... h5 {[%clk
0:01:28.8]} 33. Ra8 {[%clk 0:00:32.4]} 33... a6 {[%clk 0:01:26.6]} 34. Rh8
{[%clk 0:00:27.5]} 34... g6 {[%clk 0:01:26.3]} 35. Rg8 {[%clk 0:00:24.4]} 35...
f5 {[%clk 0:01:26.5]} 36. Rg2 {[%clk 0:00:23.8]} 36... Rf7 {[%clk 0:01:09.9]}
37. c5 {[%clk 0:00:20.5]} 37... f4 {[%clk 0:01:09.3]} 38. Ka5 {[%clk 0:00:18.1]}
38... f3 {[%clk 0:01:09.1]} 0

[Event "Torneo Nuevo Centro. Jornada 11"]
[Site "Chess.com"]
[Date "2020.08.28"]
[Round "1"]
[White "Alvarez Usina, Jordi"]
[Black "Martínez Escandell, Alfonso"]
[Result "0-1"]
[WhiteElo "1268"]
[BlackElo "1928"]
[TimeControl "180+2"]
[EndTime "10:38:16 PDT"]
[Termination "Victoria de Alfonso10 por tiempo"]

1. d4 {[%clk 0:02:58.1]} 1... Nf6 {[%clk 0:02:59.4]} 2. Bf4 {[%clk 0:02:56.7]}
2... b6 {[%clk 0:02:51.1]} 3. Nf3 {[%clk 0:02:44.8]} 3... g6 {[%clk 0:02:48.9]}
4. e3 {[%clk 0:02:44]} 4... Bg7 {[%clk 0:02:48.8]} 5. Bd3 {[%clk 0:02:32.4]}
5... Bb7 {[%clk 0:02:49]} 6. Nbd2 {[%clk 0:02:32.9]} 6... O-O {[%clk 0:02:49.2]}
7. c3 {[%clk 0:02:33.4]} 7... d6 {[%clk 0:02:48.3]} 8. Qe2 {[%clk 0:02:28.1]}
8... Nbd7 {[%clk 0:02:47.4]} 9. Qf1 {[%clk 0:02:15.8]} 9... c5 {[%clk
0:02:47.3]} 10. O-O-O {[%clk 0:02:07.7]} 10... cxd4 {[%clk 0:02:42.1]} 11. exd4
{[%clk 0:02:05.8]} 11... a5 {[%clk 0:02:39.7]} 12. Re1 {[%clk 0:02:03.1]} 12...
a4 {[%clk 0:02:34.4]} 13. a3 {[%clk 0:02:02.4]} 13... Rc8 {[%clk 0:02:22.3]} 14.
Bb5 {[%clk 0:02:00.6]} 14... Nd5 {[%clk 0:02:19.4]} 15. Bg3 {[%clk 0:01:55.1]}
15... Ra8 {[%clk 0:02:19.7]} 16. h4 {[%clk 0:01:43.5]} 16... h5 {[%clk 0:02:19]}
17. Qd3 {[%clk 0:01:28.5]} 17... Nc7 {[%clk 0:02:18.4]} 18. Ne4 {[%clk
0:01:22.6]} 18... Bxe4 {[%clk 0:02:15.4]} 19. Qxe4 {[%clk 0:01:22.3]} 19... Nxb5
{[%clk 0:02:15.2]} 20. Qc6 {[%clk 0:01:16.8]} 20... Nc7 {[%clk 0:02:05.8]} 21.
Re2 {[%clk 0:01:08.1]} 21... Ne6 {[%clk 0:02:02.8]} 22. Rhe1 {[%clk 0:01:02.5]}
22... Qc8 {[%clk 0:01:56.4]} 23. Qe4 {[%clk 0:00:51.2]} 23... Nf6 {[%clk
0:01:45.7]} 24. Qb1 {[%clk 0:00:50]} 24... Ng4 {[%clk 0:01:43.3]} 25. Ng5 {[%clk
0:00:41.3]} 25... Nxg5 {[%clk 0:01:35.5]} 26. hxg5 {[%clk 0:00:41]} 26... Bxd4
{[%clk 0:01:36.1]} 27. Qd3 {[%clk 0:00:30.9]} 27... Be5 {[%clk 0:01:32.2]} 28.
f4 {[%clk 0:00:25.5]} 28... Bg7 {[%clk 0:01:28]} 29. Rxe7 {[%clk 0:00:23.5]}
29... Qc5 {[%clk 0:01:21.5]} 30. Qe2 {[%clk 0:00:19.2]} 30... Rac8 {[%clk
0:01:18.2]} 31. Rf1 {[%clk 0:00:14.8]} 31... Bxc3 {[%clk 0:01:16.5]} 32. Kb1
{[%clk 0:00:11.3]} 32... Bg7 {[%clk 0:01:10.7]} 33. Bf2 {[%clk 0:00:11]} 33...
Nxf2 {[%clk 0:01:10.9]} 34. Rxf2 {[%clk 0:00:09.4]} 34... Qf5+ {[%clk
0:01:09.7]} 35. Ka2 {[%clk 0:00:06.9]} 35... Rc5 {[%clk 0:01:09.8]} 0

[Event "Torneo Nuevo Centro. Jornada 11"]
[Site "Chess.com"]
[Date "2020.08.28"]
[Round "1"]
[White "Conejero Martínez, Víctor"]
[Black "Castellano López, Javier"]
[Result "0-1"]
[WhiteElo "1372"]
[BlackElo "1948"]
[TimeControl "180+2"]
[EndTime "10:38:38 PDT"]
[Termination "Victoria de its_xavi_official por jaque mate"]

1. d4 {[%clk 0:02:59.1]} 1... Nf6 {[%clk 0:02:58.8]} 2. c4 {[%clk 0:02:59]} 2...
e6 {[%clk 0:02:58]} 3. Nc3 {[%clk 0:02:58]} 3... Bb4 {[%clk 0:02:58.7]} 4. Nf3
{[%clk 0:02:52.7]} 4... O-O {[%clk 0:02:56.7]} 5. Bg5 {[%clk 0:02:52.2]} 5... h6
{[%clk 0:02:54.2]} 6. Bf4 {[%clk 0:02:50.3]} 6... b6 {[%clk 0:02:46.5]} 7. e3
{[%clk 0:02:44.7]} 7... Bb7 {[%clk 0:02:45.1]} 8. Bd3 {[%clk 0:02:42.4]} 8...
Ne4 {[%clk 0:02:38.7]} 9. Qc2 {[%clk 0:02:39.6]} 9... Bxc3+ {[%clk 0:02:29.8]}
10. bxc3 {[%clk 0:02:37.3]} 10... f5 {[%clk 0:02:30.8]} 11. O-O {[%clk
0:02:33.2]} 11... d6 {[%clk 0:02:25.8]} 12. Rab1 {[%clk 0:02:20.6]} 12... Nd7
{[%clk 0:02:15.1]} 13. a4 {[%clk 0:02:19.6]} 13... a5 {[%clk 0:02:15.2]} 14. Nd2
{[%clk 0:02:10.8]} 14... Nxd2 {[%clk 0:02:10]} 15. Qxd2 {[%clk 0:02:10.7]} 15...
g5 {[%clk 0:02:11.6]} 16. Bg3 {[%clk 0:02:09.9]} 16... h5 {[%clk 0:02:01.8]} 17.
h3 {[%clk 0:02:08.6]} 17... h4 {[%clk 0:02:00.9]} 18. Bh2 {[%clk 0:02:08.9]}
18... Nf6 {[%clk 0:01:57.8]} 19. Qe2 {[%clk 0:02:05.9]} 19... Qe8 {[%clk
0:01:52.8]} 20. f4 {[%clk 0:01:53.8]} 20... g4 {[%clk 0:01:47.1]} 21. hxg4
{[%clk 0:01:51.5]} 21... Nxg4 {[%clk 0:01:47.8]} 22. Qe1 {[%clk 0:01:42]} 22...
Rf7 {[%clk 0:01:18.4]} 23. Qxh4 {[%clk 0:01:40.7]} 23... Rh7 {[%clk 0:01:14.9]}
24. Qg5+ {[%clk 0:01:37.9]} 24... Kh8 {[%clk 0:01:15.6]} 25. Bg3 {[%clk
0:01:34.3]} 25... Qf7 {[%clk 0:00:57.2]} 26. Be2 {[%clk 0:01:28.9]} 26... Rg8
{[%clk 0:00:56.9]} 27. Bxg4 {[%clk 0:01:01]} 27... Rxg5 {[%clk 0:00:57]} 28.
fxg5 {[%clk 0:01:00.1]} 28... Be4 {[%clk 0:00:37.3]} 29. Rb5 {[%clk 0:00:41.7]}
29... Bd3 {[%clk 0:00:36.2]} 30. Rf2 {[%clk 0:00:36.9]} 30... Bxc4 {[%clk
0:00:37.1]} 31. Rb1 {[%clk 0:00:35.9]} 31... Bd3 {[%clk 0:00:36.9]} 32. Rd1
{[%clk 0:00:30]} 32... Be4 {[%clk 0:00:38]} 33. Be2 {[%clk 0:00:20.9]} 33... Qg6
{[%clk 0:00:34.8]} 34. Bf4 {[%clk 0:00:20.1]} 34... Kg8 {[%clk 0:00:28.3]} 35.
Bb5 {[%clk 0:00:20]} 35... Rh8 {[%clk 0:00:27.7]} 36. c4 {[%clk 0:00:20.1]}
36... Qh7 {[%clk 0:00:28.1]} 37. Kf1 {[%clk 0:00:19.7]} 37... Qh5 {[%clk
0:00:27.7]} 38. Bd7 {[%clk 0:00:17.8]} 38... Qxd1# {[%clk 0:00:28.3]} 0